bitfinex/quotes_ETHUSD_20251010
["timestamp","ask_amount","ask_price","bid_price","bid_amount"]
[1760137292708,2.58059544,3875.1,3874.2,7.6224]
[1760137292908,1.92,3874.8,3874.2,8.8524]
[1760137293132,1.92,3876.3,3874.2,8.8524]
[1760137293435,1.92,3874.3,3874.2,8.8524]
[1760137294248,1.92,3874.3,3874.2,10.0824]
[1760137294949,0.99999999,3876.0,3874.2,10.0824]
[1760137295105,1.92,3874.3,3874.2,10.0824]
[1760137295312,4.5013113,3874.0,3873.8,1e-08]
[1760137295619,4.50184446,3873.2,3873.1,1e-08]
[1760137295822,2.58244454,3872.3,3872.2,1e-08]
[1760137296019,2.58257792,3872.1,3872.0,1e-08]
[1760137296343,4.50257792,3872.1,3872.0,1e-08]
[1760137296515,1.92,3872.1,3872.0,1e-08]
[1760137296932,1.92,3874.2,3872.0,6.39520001]
[1760137297118,1.92,3874.9,3872.0,6.39520001]
[1760137297317,1.23577111,3876.8,3872.0,6.39520001]
[1760137297529,0.99999999,3874.2,3872.0,6.39520001]
[1760137297747,1.92,3873.4,3872.0,6.39520001]
[1760137297935,2.58066025,3875.0,3872.0,6.39520001]
[1760137297936,2.91999999,3873.9,3872.0,6.39520001]
[1760137298138,4.50226415,3872.6,3872.0,6.39520001]
[1760137298359,2.58115263,3874.3,3872.0,6.39520001]
[1760137298360,1.92,3872.1,3872.0,7.62520001]
[1760137299349,1.92,3872.1,3868.1,7.385]
[1760137299540,2.58254711,3872.2,3868.1,7.385]
[1760137299541,4.50284474,3871.7,3868.1,7.385]
[1760137299741,4.50284474,3871.7,3871.6,1.232]
[1760137300042,2.58317834,3871.2,3871.1,1e-08]
[1760137300237,4.50317834,3871.2,3871.1,1e-08]
[1760137300558,4.50317834,3871.2,3871.1,0.12880001]
[1760137300766,4.50317834,3871.2,3871.1,1e-08]
[1760137301258,4.50384579,3870.2,3870.1,1e-08]
[1760137301561,2.58451359,3869.2,3869.1,1e-08]
[1760137302161,0.99999999,3870.9,3869.1,1e-08]
[1760137302459,1.92,3869.2,3869.1,1e-08]
[1760137302762,0.99999999,3870.7,3869.1,1.23000001]
[1760137302960,1.0,3875.4,3869.1,1.23000001]
[1760137302961,2.58447175,3869.3,3869.1,1.23000001]
[1760137303163,2.58451359,3869.2,3869.1,1.23000001]
[1760137303364,2.584714,3868.9,3868.8,1e-08]
[1760137303541,3.58471399,3868.9,3868.8,1e-08]
[1760137303735,2.584714,3868.9,3868.8,1e-08]
[1760137304066,2.584714,3868.9,3868.8,1.23000001]
[1760137304231,0.99999999,3870.5,3868.8,1.23000001]
[1760137304432,2.58239177,3872.4,3868.8,1.23000001]
[1760137304433,2.58468131,3869.0,3868.8,1.23000001]
[1760137304736,2.58466608,3869.0,3868.8,1.23000001]
[1760137305049,2.58470541,3869.0,3868.8,1.23000001]
[1760137305250,2.58466263,3869.0,3868.8,6.39940001]
[1760137305560,1.250259,3874.8,3868.8,7.62940001]
[1760137305758,0.99999999,3871.2,3868.8,7.62940001]
[1760137306059,0.005,3871.9,3868.8,7.62940001]
[1760137306060,0.99999999,3871.7,3868.8,7.62940001]
[1760137306228,2.58455331,3869.2,3868.8,7.63140001]
[1760137306426,2.58311161,3871.3,3868.8,7.63140001]
[1760137306427,2.58468544,3869.0,3868.8,7.63140001]
[1760137306839,2.58468544,3869.0,3868.8,8.86140001]
[1760137307160,2.58468544,3869.0,3868.8,1e-08]
[1760137307330,2.58491443,3868.6,3868.5,1e-08]
[1760137307532,2.58585022,3867.2,3864.4,1.23]
[1760137308362,2.5849598,3868.6,3867.1,1.235]
[1760137308560,2.58569985,3867.5,3867.1,1.235]
[1760137308761,0.99999999,3869.2,3867.1,1.235]
[1760137308969,0.99999999,3868.6,3867.1,1.235]
[1760137309176,2.58576442,3867.4,3867.1,1.235]
[1760137309471,1.92,3867.7,3867.1,1.235]
[1760137309638,2.58574811,3867.4,3867.1,2.465]
[1760137309843,2.58534945,3868.0,3867.1,2.465]
[1760137310238,1.0,4466.1,3867.1,2.465]
[1760137310239,0.99999999,3869.3,3867.1,2.465]
[1760137310445,2.58438761,3869.4,3867.1,2.465]
[1760137310777,2.58253371,3872.2,3869.2,0.1288]
[1760137310778,2.58398257,3870.0,3869.2,0.1288]
[1760137311260,2.58454063,3869.2,3867.1,8.8654]
[1760137311467,2.58461,3869.1,3867.1,8.8654]
[1760137311949,2.58461,3869.1,3869.0,0.1288]
[1760137312149,4.50461,3869.1,3869.0,0.1288]
[1760137312365,4.50461,3869.1,3869.0,1.3588]
[1760137312742,1.92,3869.1,3869.0,1.3588]
[1760137312966,0.99999999,3870.4,3869.0,1.3588]
[1760137313343,2.58344528,3870.8,3869.0,1.23]
[1760137313562,0.99999999,3870.7,3869.0,1.23]
[1760137313761,2.58384461,3870.3,3869.0,2.46]
[1760137313980,2.58373186,3870.4,3869.0,2.46]
[1760137314174,0.99999999,3870.6,3869.0,2.46]
[1760137314383,2.58418819,3869.7,3869.0,2.46]
[1760137314755,0.99999999,3870.7,3869.0,2.46]
[1760137315083,0.99999999,3869.8,3869.0,2.46]
[1760137315258,0.99999999,3869.6,3869.0,3.69]
[1760137315581,2.58385313,3870.2,3869.0,3.69]
[1760137315582,2.58453399,3869.2,3869.0,3.69]
[1760137315791,2.58453288,3869.2,3869.0,3.69]
[1760137316084,2.58408598,3869.9,3869.0,3.69]
[1760137316260,0.99999999,3870.4,3869.0,3.69]
[1760137316474,2.58320128,3871.2,3869.0,3.69]
[1760137316790,0.99999999,3870.5,3869.0,4.92]
[1760137317088,2.58393791,3870.1,3869.0,4.92]
[1760137317390,2.58386816,3870.2,3869.0,4.92]
[1760137317885,2.58773898,3871.9,3869.0,4.92]
[1760137317886,2.58301633,3871.5,3869.0,4.92]
[1760137318073,2.58334078,3871.0,3869.0,11.3193]
[1760137318274,2.58326648,3871.1,3869.0,11.3193]
[1760137318586,0.99999999,3871.8,3869.0,11.3193]
[1760137318587,2.58315666,3871.3,3869.0,11.3193]
[1760137318784,0.005,3871.9,3869.0,11.3193]
[1760137318785,0.99999999,3871.1,3869.0,11.3193]
[1760137319289,2.58771824,3871.9,3869.0,11.3193]
[1760137319604,2.58771824,3871.9,3869.1,1.92]
[1760137319605,0.005,3871.9,3869.1,1.92]
[1760137319760,0.99999999,3871.5,3869.1,5.1692]
[1760137319964,2.58843085,3870.9,3869.1,5.1692]
[1760137320162,0.005,3870.9,3869.1,5.1692]
[1760137320360,0.005,3870.9,3869.2,1.92]
[1760137320592,0.005,3870.9,3869.2,7.089]
[1760137320779,0.005,3870.9,3869.2,8.319]
[1760137321962,0.005,3870.9,3869.9,1.92]
[1760137322164,0.005,3870.9,3869.9,7.0881]
[1760137322778,0.005,3870.9,3870.2,1.92]
[1760137323092,0.005,3870.9,3870.2,7.0877]
[1760137323307,0.005,3870.9,3870.8,0.1288]
[1760137323466,0.005,3870.9,3870.8,7.0869]
[1760137324275,0.006,3870.9,3870.8,5.1669]
[1760137324872,0.006,3870.9,3870.8,8.3169]
[1760137326297,0.006,3870.9,3870.8,9.5469]
[1760137326703,0.006,3870.9,3870.8,7.6269]
[1760137327399,0.006,3870.9,3870.8,9.5469]
[1760137327697,0.006,3870.9,3870.8,10.7769]
[1760137327903,0.006,3870.9,3870.8,8.8569]
[1760137328911,0.006,3870.9,3870.8,10.0869]
[1760137329296,0.006,3870.9,3870.8,12.0069]
[1760137330401,0.006,3870.9,3870.8,13.2369]
[1760137331726,0.006,3870.9,3870.8,14.4669]
[1760137331906,0.001,3871.3,3870.9,1.92]
[1760137332102,0.001,3871.3,3870.9,7.0868]
[1760137332294,0.001,3871.3,3871.1,1.92]
[1760137332498,0.001,3871.3,3871.1,7.0865]
[1760137333106,0.001,3871.3,3871.1,8.3165]
[1760137333603,0.001,3871.3,3871.2,0.1288]
[1760137333924,0.001,3871.3,3871.2,7.0864]
[1760137334496,0.001,3871.3,3871.2,8.3164]
[1760137335803,0.001,3871.3,3871.2,9.5464]
[1760137336709,0.001,3871.3,3871.2,103.5134]
[1760137337029,0.001,3871.3,3871.2,103.7725]
[1760137337235,0.001,3871.3,3871.2,102.8234]
[1760137337599,0.001,3871.3,3871.2,103.12145419]
[1760137337936,0.001,3871.3,3871.2,8.8564]
[1760137338838,0.001,3871.3,3871.2,10.0864]
[1760137339837,1.00099999,3871.3,3871.2,10.0864]
[1760137340043,0.001,3871.3,3871.2,11.3164]
[1760137341443,0.001,3871.3,3871.2,12.5464]
[1760137342818,0.001,3871.3,3871.2,13.7764]
[1760137343942,0.001,3871.3,3871.2,13.9052]
[1760137344251,0.001,3871.3,3871.2,15.0064]
[1760137344548,1.00099999,3871.3,3871.2,15.0064]
[1760137344845,0.001,3871.3,3871.2,15.0064]
[1760137345046,1.00099999,3871.3,3871.2,15.0064]
[1760137345344,1.921,3871.3,3871.2,15.0064]
[1760137345548,2.92099999,3871.3,3871.2,16.2364]
[1760137345749,5.50337853,3870.9,3870.8,7.38]
[1760137345944,0.99999999,3869.3,3869.0,7.38]
[1760137346132,1.921,3871.3,3869.0,7.38]
[1760137346334,2.58390995,3870.2,3869.0,7.38]
[1760137346644,1.921,3871.3,3869.0,7.38]
[1760137346844,1.92,3869.9,3869.2,3.69]
[1760137347044,0.99999999,3869.3,3869.2,3.69]
[1760137347350,2.5823456,3872.5,3869.2,3.69]
[1760137347351,1.92,3870.4,3869.2,3.69]
[1760137347552,2.58358777,3872.1,3869.2,3.69]
[1760137347553,0.99999999,3869.3,3869.2,3.69]
[1760137348262,0.99999999,3869.3,3869.2,4.92]
[1760137348825,2.91999999,3869.3,3869.2,4.92]
[1760137349334,0.99999999,3869.3,3869.2,4.92]
[1760137349545,0.99999999,3869.3,3869.2,6.15]
[1760137349950,0.99999999,3870.2,3869.2,6.15]
[1760137350119,2.58402814,3870.0,3869.2,6.15]
[1760137350315,0.99999999,3869.3,3869.2,6.15]
[1760137350716,3.58444678,3869.3,3869.2,6.15]
[1760137350950,3.58444678,3869.3,3869.2,7.38]
[1760137351952,2.58438633,3869.4,3869.2,7.38]
[1760137352253,0.99999999,3869.3,3869.2,7.38]
[1760137352453,0.99999999,3869.3,3869.2,8.61]
[1760137352657,0.99999999,3869.3,3866.1,0.005]
[1760137352854,3.58518172,3868.2,3866.1,0.005]
[1760137353258,3.58544908,3867.8,3866.1,0.005]
[1760137353633,2.58544909,3867.8,3866.1,0.005]
[1760137353833,3.58544908,3867.8,3867.7,1.232]
[1760137354039,2.58544909,3867.8,3867.7,1.232]
[1760137354227,3.58544908,3867.8,3867.7,1.3608]
[1760137354633,0.99999999,3867.8,3867.7,1.232]
[1760137354859,0.99999999,3867.8,3867.7,1.3608]
[1760137355155,0.99999999,3867.8,3867.7,1.232]
[1760137355357,0.99999999,3867.8,3867.7,2.462]
[1760137356866,0.99999999,3867.8,3867.7,3.692]
[1760137357383,2.58506357,3868.4,3866.1,0.005]
[1760137357580,0.99999999,3866.2,3866.1,0.005]
[1760137358263,2.58492966,3868.6,3866.1,1.235]
[1760137358561,1.25400501,3870.8,3866.1,1.235]
[1760137358763,0.99999999,3866.9,3866.1,1.235]
[1760137359263,0.005,3870.9,3866.1,1.235]
[1760137359565,0.99999999,3866.2,3866.1,1.235]
[1760137359781,0.99999999,3866.2,3866.1,2.465]
[1760137360376,0.99999999,3866.4,3866.1,2.465]
[1760137360543,0.99999999,3866.2,3866.1,2.465]
[1760137360747,2.58507726,3868.4,3866.1,2.465]
[1760137360748,2.5862844,3866.6,3866.1,2.465]
[1760137360932,2.58366187,3870.5,3866.1,3.695]
[1760137361134,2.58550258,3867.8,3866.1,3.695]
[1760137361333,2.58458961,3869.1,3866.1,3.695]
[1760137361334,0.99999999,3866.3,3866.1,3.695]
[1760137361530,3.58651618,3866.3,3866.1,3.695]
[1760137362168,2.58640108,3866.4,3865.1,1.235]
[1760137362169,3.58705436,3865.4,3865.1,1.235]
[1760137362577,3.58705436,3865.4,3865.3,5.17]
[1760137363036,3.58705436,3865.4,3865.3,1e-08]
[1760137363239,3.58718823,3865.2,3865.1,1e-08]
[1760137364033,3.58718823,3865.2,3865.1,1.23000001]
[1760137364240,2.58752296,3864.7,3864.6,2.462]
[1760137364737,3.58752295,3864.7,3864.6,2.462]
[1760137364973,2.58752296,3864.7,3864.6,2.462]
[1760137365178,3.58752295,3864.7,3864.6,2.5908]
[1760137365395,3.5879917,3864.0,3863.9,0.1288]
[1760137365681,5.5079917,3864.0,3863.9,0.1288]
[1760137365881,5.5079917,3864.0,3863.9,0.2576]
[1760137366075,2.91999999,3864.0,3863.9,0.2576]
[1760137366576,2.58740754,3864.9,3863.9,0.1288]
[1760137366887,2.58605084,3866.9,3863.9,1.3588]
[1760137367174,0.005,3869.9,3863.9,1.3588]
[1760137367175,0.99999999,3865.1,3863.9,1.3588]
[1760137367352,0.99999999,3865.0,3863.9,1.3588]
[1760137367552,0.99999999,3864.1,3863.9,1.3588]
[1760137368146,0.99999999,3866.0,3863.9,2.5888]
[1760137368347,0.005,3866.9,3864.0,1.92]
[1760137368549,1.00499999,3866.9,3864.0,1.92]
[1760137368753,0.005,3866.9,3864.0,1.92]
[1760137368963,0.99999999,3865.6,3864.0,1.92]
[1760137369365,0.005,3866.9,3864.0,1.92]
[1760137369574,1.00499999,3866.9,3864.0,3.15]
[1760137369778,0.005,3866.9,3864.0,3.15]
[1760137369967,0.005,3868.9,3864.3,2.721]
[1760137370173,0.005,3868.9,3864.4,1.92]
[1760137370550,0.001,3871.3,3864.6,1.92]
[1760137370749,2.58321751,3871.2,3864.9,2.721]
[1760137370950,0.001,3871.3,3865.1,2.721]
[1760137371257,0.001,3871.3,3865.3,2.721]
[1760137371482,0.001,3871.3,3865.7,2.721]
[1760137371647,2.5883961,3870.9,3866.1,2.721]
[1760137371979,0.005,3870.9,3866.5,2.721]
[1760137372282,0.005,3870.9,3866.9,2.721]
[1760137372653,2.58482226,3868.8,3866.9,2.721]
[1760137372858,2.58388384,3870.2,3866.9,2.721]
[1760137373058,2.58485948,3868.7,3866.9,2.721]
[1760137373287,2.58485948,3868.7,3866.5,1.23]
[1760137373288,2.58411287,3869.8,3867.0,2.721]
[1760137373587,2.58589362,3867.2,3867.0,2.721]
[1760137373791,2.58396239,3870.1,3867.0,3.951]
[1760137373792,0.99999999,3869.5,3867.0,3.951]
[1760137373979,2.58588373,3867.2,3867.0,3.951]
[1760137374393,2.58464719,3869.0,3867.0,3.951]
[1760137374694,2.58417965,3869.7,3867.0,3.951]
[1760137374880,0.006,3869.9,3867.0,3.951]
[1760137375068,0.006,3869.9,3867.0,5.181]
[1760137375482,2.58588924,3867.2,3867.0,5.181]
[1760137375680,2.5858111,3867.3,3867.0,5.181]
[1760137375867,1.24024795,3869.8,3867.0,5.181]
[1760137375868,1.26441786,3870.2,3867.0,5.181]
[1760137376083,2.58424643,3869.6,3867.0,5.181]
[1760137376285,2.58534629,3868.0,3867.0,5.181]
[1760137376480,2.5853154,3868.0,3867.9,0.1288]
[1760137376681,2.58529832,3868.1,3867.9,0.1288]
[1760137377083,2.58591709,3867.1,3867.0,6.411]
[1760137377484,2.58516814,3868.3,3867.0,6.411]
[1760137377687,0.006,3869.9,3867.0,6.411]
[1760137377891,0.006,3869.9,3867.0,7.641]
[1760137378063,2.5841476,3869.8,3867.0,7.641]
[1760137378394,0.006,3869.9,3867.0,7.641]
[1760137379288,0.006,3869.9,3867.2,2.721]
[1760137380286,0.006,3869.9,3867.3,2.721]
[1760137380689,0.006,3869.9,3867.3,3.951]
[1760137382011,0.006,3869.9,3867.3,5.181]
[1760137382300,2.58411287,3869.8,3867.3,5.181]
[1760137382497,2.58417965,3869.7,3867.3,5.181]
[1760137382712,0.006,3869.9,3867.3,5.181]
[1760137382884,2.58422205,3869.7,3867.3,5.181]
[1760137383078,2.58440089,3869.4,3867.3,5.181]
[1760137383283,2.58424487,3869.7,3867.3,5.181]
[1760137383519,0.006,3869.9,3867.3,6.411]
[1760137384022,0.006,3869.9,3867.4,1.92]
[1760137384984,0.006,3869.9,3867.4,3.15]
[1760137386308,0.006,3869.9,3867.4,4.38]
[1760137386494,0.006,3869.9,3867.5,0.2581]
[1760137386805,0.006,3869.9,3867.7,2.1781]
[1760137386991,0.006,3869.9,3867.4,4.38]
[1760137387194,0.006,3869.9,3869.8,0.1288]
[1760137387503,0.006,3869.9,3867.4,4.38]
[1760137387702,0.006,3869.9,3867.5,1.23]
[1760137387930,0.006,3869.9,3867.6,1.92]
[1760137388130,0.006,3869.9,3867.6,17.08557281]
[1760137388436,2.58101291,3874.5,3868.4,2.721]
[1760137388604,0.001,3875.3,3868.6,2.721]
[1760137388801,0.001,3875.3,3867.6,14.5]
[1760137388802,0.001,3875.3,3869.0,2.721]
[1760137389007,2.58087992,3874.7,3869.3,1.92]
[1760137389324,2.58085316,3874.7,3869.6,2.721]
[1760137389527,0.001,3875.3,3869.6,2.721]
[1760137389528,2.58151121,3873.7,3869.6,2.721]
[1760137389732,0.001,3875.3,3869.6,2.721]
[1760137389733,1.28825765,3873.9,3869.6,2.721]
[1760137389938,0.005,3873.9,3869.6,2.721]
[1760137390309,0.005,3873.9,3869.7,2.721]
[1760137390808,0.005,3873.9,3870.1,0.005]
[1760137391657,2.58144457,3873.8,3870.3,2.721]
[1760137391809,0.005,3873.9,3870.5,2.721]
[1760137392815,0.005,3873.9,3870.1,1.235]
[1760137392816,2.5568075,3872.6,3870.6,2.721]
[1760137393049,1.28825765,3873.9,3870.6,2.721]
[1760137393225,1.28825765,3873.9,3870.6,3.951]
[1760137393226,2.58151121,3873.7,3870.6,3.951]
[1760137393413,1.28825765,3873.9,3870.6,3.951]
[1760137393740,2.58283248,3871.8,3870.6,3.951]
[1760137394036,2.58206816,3872.9,3870.6,3.951]
[1760137394235,2.58212431,3872.8,3870.6,3.951]
[1760137394437,0.005,3873.9,3870.6,3.951]
[1760137394640,2.58151121,3873.7,3870.6,5.181]
[1760137394814,2.5816445,3873.5,3870.6,5.181]
[1760137395014,2.58321473,3871.2,3870.6,5.181]
[1760137395217,2.58171115,3873.4,3870.6,5.181]
[1760137395430,2.5830661,3871.4,3870.6,5.181]
[1760137395631,0.005,3873.9,3870.6,5.181]
[1760137396047,2.58640159,3873.9,3870.6,6.411]
[1760137396355,0.005,3873.9,3870.6,6.411]
[1760137396552,0.005,3873.9,3871.0,2.721]
[1760137397440,0.005,3873.9,3873.8,0.1288]
[1760137397846,0.005,3873.9,3871.2,2.721]
[1760137398427,0.005,3873.9,3871.5,1.92]
[1760137398646,7.606,3876.7,3871.7,1.92]
[1760137398844,2.57760421,3879.6,3871.5,1.92]
[1760137398845,7.606,3880.5,3873.6,2.721]
[1760137399026,0.99999999,3880.3,3873.6,2.721]
[1760137399227,0.03221317,3880.4,3873.6,2.721]
[1760137399228,2.57767961,3879.5,3873.6,2.721]
[1760137399435,2.58241421,3879.9,3873.6,2.721]
[1760137399644,0.03221815,3879.8,3873.6,2.721]
[1760137399870,1.00499999,3879.9,3873.8,2.721]
[1760137400028,2.57843251,3878.4,3873.8,2.721]
[1760137400229,2.5824214,3879.9,3873.8,3.951]
[1760137400430,0.03221815,3879.8,3873.8,3.951]
[1760137400783,0.99999999,3879.3,3873.8,3.951]
[1760137400936,2.57840175,3878.4,3873.8,3.951]
[1760137401136,2.57829999,3878.6,3873.8,3.951]
[1760137401364,0.005,3878.9,3873.8,3.951]
[1760137401561,0.005,3878.9,3873.8,5.181]
[1760137401753,0.005,3878.9,3874.0,2.721]
[1760137401952,0.005,3878.9,3874.2,2.721]
[1760137402275,0.005,3878.9,3874.6,2.721]
[1760137402838,0.005,3878.9,3874.6,3.951]
[1760137404073,1.25151522,3878.4,3874.6,3.951]
[1760137404283,1.23903701,3877.1,3874.6,5.181]
[1760137404479,2.57881778,3877.8,3874.6,5.181]
[1760137404774,1.23903701,3877.1,3874.6,5.181]
[1760137404981,1.26925219,3877.0,3874.6,5.181]
[1760137405147,1.25740691,3876.9,3874.6,5.181]
[1760137405342,0.99999999,3876.6,3874.6,5.181]
[1760137405542,2.58021899,3875.7,3874.6,5.181]
[1760137405765,1.20937876,3875.8,3874.6,6.411]
[1760137405966,1.00499999,3876.9,3874.6,6.411]
[1760137406272,2.58079067,3874.8,3874.6,6.411]
[1760137406641,1.250259,3874.8,3873.8,2.46]
[1760137406972,2.58133382,3874.0,3873.9,2.721]
[1760137407180,0.99999999,3875.2,3873.9,2.721]
[1760137407389,0.005,3876.9,3873.9,2.721]
[1760137407556,0.005,3879.9,3876.0,2.721]
[1760137407740,7.606,3885.3,3878.4,2.721]
[1760137407947,2.443,3885.3,3878.5,1.92]
[1760137408262,2.443,3885.3,3878.4,2.721]
[1760137408263,2.57387007,3885.2,3878.8,2.721]
[1760137408442,2.443,3885.3,3879.0,2.721]
[1760137408443,0.99999999,3884.8,3879.0,2.721]
[1760137408643,2.443,3884.7,3879.2,2.721]
[1760137408839,2.443,3884.7,3879.4,2.721]
[1760137409143,2.57627989,3881.6,3879.4,2.721]
[1760137409353,2.443,3881.5,3879.4,2.721]
[1760137409845,2.57648552,3881.3,3879.4,3.951]
[1760137410044,2.443,3881.2,3879.4,3.951]
[1760137410345,1.44,3881.1,3880.1,0.005]
[1760137410570,2.56718674,3880.2,3880.1,0.005]
[1760137410774,2.56718674,3880.2,3878.1,0.005]
[1760137410775,7.57,3880.2,3878.1,0.005]
[1760137410975,7.57,3880.1,3878.1,0.005]
[1760137411144,7.57,3880.0,3878.1,0.005]
[1760137411344,7.57,3879.9,3878.1,1.235]
[1760137411546,7.57,3881.3,3878.1,1.235]
[1760137411748,7.57,3881.2,3878.1,1.235]
[1760137411943,7.57,3883.1,3878.1,1.235]
[1760137412145,1.29354589,3882.9,3878.1,1.235]
[1760137412372,7.57,3882.8,3878.1,1.235]
[1760137412671,2.57681863,3880.8,3878.1,1.235]
[1760137412875,7.57,3880.7,3878.1,2.465]
[1760137413761,0.005,3881.9,3878.1,2.465]
[1760137413762,7.57,3880.6,3878.1,2.465]
[1760137414277,7.57,3881.8,3878.1,3.695]
[1760137414649,2.57625721,3881.6,3878.1,3.695]
[1760137414975,1.44,3881.5,3878.1,3.695]
[1760137415179,2.57802289,3879.0,3878.1,3.695]
[1760137415350,2.57842406,3878.4,3878.1,3.695]
[1760137415551,10.14849201,3878.3,3878.1,4.925]
[1760137415978,7.57,3878.3,3878.1,4.925]
[1760137416380,7.57,3878.2,3878.1,4.925]
[1760137416698,2.57848586,3878.3,3878.1,4.925]
[1760137416897,7.57,3878.2,3878.1,6.155]
[1760137417855,7.57,3878.2,3878.1,6.2838]
[1760137418057,7.57,3880.0,3878.1,6.155]
[1760137418278,2.58041904,3882.9,3878.1,7.385]
[1760137418279,2.57849495,3878.3,3878.1,7.385]
[1760137418479,7.57,3878.2,3878.1,12.542]
[1760137419189,1.44,3878.2,3878.1,1e-08]
[1760137419480,1.44,3878.2,3876.1,0.005]
[1760137419481,2.5793139,3877.0,3876.9,1e-08]
[1760137419689,2.58051197,3875.2,3875.1,0.005]
[1760137419895,10.15051197,3875.2,3875.1,0.005]
[1760137420257,7.57,3875.2,3875.1,0.005]
[1760137421081,7.57,3875.2,3875.1,1.235]
[1760137422070,7.57,3875.2,3875.1,1e-08]
[1760137422282,2.5816445,3873.5,3870.2,31.254]
[1760137422461,2.58057856,3875.1,3870.2,31.254]
[1760137422663,2.58162627,3873.6,3870.2,31.254]
[1760137422869,2.58162627,3873.6,3869.2,107.775]
[1760137423065,2.5815985,3873.6,3869.2,107.775]
[1760137423884,2.5815985,3873.6,3873.4,1.232]
[1760137424386,2.58160142,3873.6,3873.4,1.232]
[1760137425387,2.58160142,3873.6,3873.4,2.462]
[1760137425593,2.58148601,3873.8,3873.4,2.462]
[1760137425770,10.15065172,3875.0,3873.4,2.462]
[1760137426308,7.57,3875.0,3873.4,2.462]
[1760137426602,2.58147544,3873.8,3873.4,3.692]
[1760137426761,2.58160708,3873.6,3873.4,3.692]
[1760137428004,2.58160708,3873.6,3873.4,4.922]
[1760137428303,2.58159795,3873.6,3873.4,4.922]
[1760137429593,2.58159795,3873.6,3873.4,6.152]
[1760137429781,2.58184446,3873.2,3873.0,1e-08]
[1760137430993,2.58184446,3873.2,3873.0,1.23000001]
[1760137431178,2.5821778,3872.7,3872.6,0.002]
[1760137432299,1.20937876,3875.8,3872.6,1.232]
[1760137432503,7.57,3874.9,3872.6,1.232]
[1760137432672,2.58057856,3875.1,3872.6,1.232]
[1760137432863,7.57,3875.0,3872.6,1.232]
[1760137433084,2.57962166,3876.6,3872.6,1.232]
[1760137433085,2.58212859,3872.8,3872.6,1.232]
[1760137433404,7.57,3874.9,3872.6,1.232]
[1760137433585,1.24759899,3877.3,3872.6,1.232]
[1760137433586,2.58197787,3873.0,3872.6,2.462]
[1760137433788,2.58193756,3873.1,3872.6,2.462]
[1760137433984,2.58190282,3873.2,3872.6,2.462]
[1760137434189,2.58179461,3873.3,3872.6,2.462]
[1760137434385,2.58166708,3873.5,3872.6,2.462]
[1760137434586,7.57,3875.1,3872.6,2.462]
[1760137434587,2.58103653,3874.5,3872.6,2.462]
[1760137434904,7.57,3874.4,3872.6,2.462]
[1760137435098,7.57,3874.3,3872.6,3.692]
[1760137435486,7.57,3875.4,3872.6,3.692]
[1760137435686,7.57,3875.8,3872.6,3.692]
[1760137436115,7.57,3875.8,3872.7,1.92]
[1760137436608,7.57,3875.8,3872.7,1.23]
[1760137437084,2.58149743,3873.8,3872.7,1.23]
[1760137437811,0.17294,4474.4,3872.7,6.3936]
[1760137437812,1.21563811,3877.7,3872.7,6.3936]
[1760137438104,22.5,3896.1,3875.7,0.1288]
[1760137438105,7.575,3875.9,3875.7,0.1288]
[1760137438474,7.575,3875.9,3875.8,0.1288]
[1760137438682,7.575,3875.9,3872.7,7.6236]
[1760137438876,2.58069869,3875.0,3872.7,7.6236]
[1760137439097,2.58068065,3875.0,3872.7,7.6236]
[1760137439406,7.575,3875.9,3872.7,7.6236]
[1760137439615,2.58047031,3875.3,3872.7,8.8536]
[1760137439790,2.5807439,3874.9,3872.7,8.8536]
[1760137439989,7.575,3875.9,3872.7,8.8536]
[1760137440199,7.575,3875.9,3872.8,1.92]
[1760137440402,7.575,3875.9,3872.8,7.0842]
[1760137440998,7.575,3875.9,3872.8,8.3142]
[1760137442509,7.575,3875.9,3872.8,9.5442]
[1760137442680,2.58053358,3875.2,3872.8,9.5442]
[1760137442881,2.58068018,3875.0,3872.8,7.6242]
[1760137443081,2.58049321,3875.3,3872.9,1.92]
[1760137443307,7.575,3875.9,3872.9,7.0841]
[1760137443680,7.575,3875.9,3873.0,1.92]
[1760137443883,7.575,3875.9,3873.0,7.084]
[1760137444513,7.575,3875.9,3873.2,1.92]
[1760137444678,7.575,3875.9,3873.3,1.92]
[1760137444877,7.575,3875.9,3873.3,5.1636]
[1760137445103,7.576,3875.9,3873.3,6.3936]
[1760137445298,7.576,3875.9,3873.4,1.92]
[1760137445578,7.576,3875.9,3873.4,5.1634]
[1760137446394,7.576,3875.9,3873.4,6.3934]
[1760137446700,2.58064976,3875.0,3873.4,6.3934]
[1760137446905,7.576,3875.9,3873.4,6.3934]
[1760137447107,10.15606727,3875.9,3873.4,6.3934]
[1760137447409,7.576,3875.9,3873.5,1.92]
[1760137447610,7.576,3875.9,3873.5,7.0833]
[1760137447789,7.576,3875.9,3873.5,8.3133]
[1760137448729,7.576,3875.9,3875.8,0.1288]
[1760137449025,7.576,3875.9,3875.8,5.1602]